bitfinex-derivatives/quotes_ETHF0:USTF0_20250919
["timestamp","ask_amount","ask_price","bid_price","bid_amount"]
[1758242620436,5.45098444,4612.5,4612.4,0.7186]
[1758242620638,5.75178444,4612.5,4612.4,0.7186]
[1758242621241,5.75178444,4612.5,4612.4,0.5103]
[1758242623437,5.75178444,4612.5,4612.2,0.0216]
[1758242623643,1.28540694,4612.3,4612.2,0.5319]
[1758242623845,2.54398444,4612.3,4612.2,0.5319]
[1758242624143,2.54398444,4612.3,4612.2,0.3145]
[1758242624943,2.54398444,4612.3,4612.2,0.5103]
[1758242625645,2.5443728,4612.3,4612.2,0.5103]
[1758242625845,2.2435728,4612.3,4612.2,0.7186]
[1758242626041,1.13746586,4612.3,4612.2,0.7186]
[1758242626241,2.2435728,4612.3,4612.2,0.7186]
[1758242626842,2.0245728,4612.3,4612.2,0.7186]
[1758242627043,2.2435728,4612.3,4612.2,0.7186]
[1758242628547,2.5443728,4612.3,4612.2,0.7186]
[1758242628848,2.3253728,4612.3,4612.2,0.7186]
[1758242629047,2.0245728,4612.3,4612.2,0.7186]
[1758242629247,2.2435728,4612.3,4612.2,0.7186]
[1758242630947,2.5443728,4612.3,4612.2,0.7186]
[1758242631748,2.2435728,4612.3,4612.2,0.7186]
[1758242631947,2.02764307,4612.3,4612.2,0.7186]
[1758242632143,2.24369347,4612.3,4612.2,0.7186]
[1758242632540,2.02764307,4612.3,4612.2,0.7186]
[1758242632745,0.74223613,4612.3,4612.2,0.7186]
[1758242634445,0.95843546,4612.3,4612.2,0.7186]
[1758242634645,1.15553546,4612.3,4612.2,0.7186]
[1758242636345,0.95843546,4612.3,4612.2,0.7186]
[1758242636549,0.73943546,4612.3,4612.2,0.7186]
[1758242636751,1.16923546,4612.3,4612.2,0.7186]
[1758242640149,0.95023546,4612.3,4612.2,0.7186]
[1758242640350,0.95843546,4612.3,4612.2,0.7186]
[1758242642556,1.15483546,4612.3,4612.2,0.7186]
[1758242642759,1.64803546,4612.3,4612.2,0.7186]
[1758242643057,1.64803546,4612.3,4612.2,1.60570694]
[1758242643250,1.34713546,4612.3,4612.2,1.60570694]
[1758242643963,1.15483546,4612.3,4612.2,1.60570694]
[1758242647569,1.34713546,4612.3,4612.2,1.60570694]
[1758242647772,1.34713546,4612.3,4612.2,0.7186]
[1758242648071,1.64803546,4612.3,4612.2,0.7186]
[1758242648272,1.64803546,4612.3,4612.2,0.5103]
[1758242650069,1.64803546,4612.3,4612.2,0.7166]
[1758242655678,1.34713546,4612.3,4612.2,0.7166]
[1758242656978,1.64803546,4612.3,4612.2,0.7166]
[1758242658575,1.64803546,4612.3,4612.2,0.5103]
[1758242659882,1.64803546,4612.3,4612.0,0.3276]
[1758242660081,1.42903546,4612.2,4612.1,0.306]
[1758242660476,1.42903546,4612.2,4612.1,0.5121]
[1758242661583,2.46638832,4612.2,4612.1,0.306]
[1758242661880,0.1964,4611.8,4611.7,0.306]
[1758242662083,0.9086,4611.8,4611.7,0.5121]
[1758242662277,1.43183613,4611.8,4611.7,0.5121]
[1758242662477,2.68598318,4611.8,4611.7,0.5121]
[1758242662681,2.68598318,4611.8,4611.7,0.306]
[1758242662879,2.38508318,4611.8,4611.6,2.169]
[1758242663079,1.21283613,4611.7,4611.6,2.475]
[1758242663482,1.44185954,4611.7,4611.6,2.475]
[1758242664581,1.44185954,4611.7,4611.6,2.6811]
[1758242665480,1.66085954,4611.7,4611.6,2.6811]
[1758242667683,1.35995954,4611.7,4611.6,2.8874]
[1758242667889,0.97125954,4611.7,4611.6,2.8874]
[1758242668390,1.16765954,4611.7,4611.6,2.8874]
[1758242668582,1.36515954,4611.7,4611.6,2.8874]
[1758242668779,1.66425954,4611.7,4611.6,2.8874]
[1758242671879,1.36515954,4611.7,4611.6,2.8874]
[1758242673183,1.66425954,4611.7,4611.6,2.8874]
[1758242673991,0.75225954,4611.7,4611.6,2.8874]
[1758242674192,0.97125954,4611.7,4611.6,2.8874]
[1758242674691,1.17605954,4611.7,4611.6,2.8874]
[1758242675790,0.97125954,4611.7,4611.6,2.8874]
[1758242676393,0.75225954,4611.7,4611.6,2.8874]
[1758242677191,0.95705954,4611.7,4611.6,2.8874]
[1758242679690,0.75225954,4611.7,4611.6,2.8874]
[1758242681491,0.22902341,4611.7,4611.6,2.8874]
[1758242682097,0.75546661,4611.7,4611.6,2.8874]
[1758242684290,3.2078,4612.5,4612.4,0.2094]
[1758242684492,0.76177998,4612.5,4612.4,4.66135286]
[1758242684893,0.76177998,4612.5,4612.4,4.96405286]
[1758242685089,0.96657998,4612.5,4612.4,3.9267]
[1758242686093,0.76177998,4612.5,4612.4,3.9267]
[1758242686288,0.96657998,4612.5,4612.4,3.9267]
[1758242687191,1.46317998,4612.5,4612.4,3.9267]
[1758242687592,1.16407998,4612.5,4612.4,3.9267]
[1758242688801,0.76177998,4612.5,4612.4,3.9267]
[1758242691801,0.76167864,4612.5,4612.4,3.9267]
[1758242694601,0.76167864,4612.5,4612.4,4.31675]
[1758242694802,0.76167864,4612.5,4612.4,3.9267]
[1758242698101,0.219,4612.7,4612.6,1.80242136]
[1758242698303,0.219,4612.7,4612.6,2.08982136]
[1758242698894,0.2025,4613.1,4613.0,0.5132]
[1758242699100,1.45885286,4613.1,4613.0,0.8006]
[1758242699300,1.67563287,4613.1,4613.0,0.8006]
[1758242699500,1.86803287,4613.1,4613.0,0.8006]
[1758242699699,1.95195286,4613.1,4613.0,0.8006]
[1758242701205,1.73295286,4613.1,4613.0,0.8006]
[1758242701503,1.95195286,4613.1,4613.0,0.8006]
[1758242701802,1.95195286,4613.1,4613.0,0.4856]
[1758242705009,1.65125286,4613.1,4613.0,0.8006]
[1758242705200,1.45885286,4613.1,4613.0,0.8006]
[1758242705397,1.25635286,4613.1,4613.0,0.8006]
[1758242705603,3.2078,4613.3,4613.0,0.5132]
[1758242705805,3.2078,4613.3,4613.1,0.6825]
[1758242705806,0.219,4613.2,4613.1,0.6825]
[1758242706007,3.2078,4613.3,4613.2,0.2874]
[1758242706201,3.4268,4613.3,4613.2,1.71985286]
[1758242706606,0.219,4613.3,4613.2,1.71985286]
[1758242708104,3.2078,4614.0,4613.2,1.43245286]
[1758242708305,0.2025,4614.0,4613.9,0.6825]
[1758242708506,0.4215,4614.0,4613.9,0.6825]
[1758242708804,40.8,4614.4,4614.0,0.1181]
[1758242709005,3.2078,4614.5,4614.4,0.6825]
[1758242709308,0.219,4614.6,4614.5,0.1181]
[1758242709511,1.23985286,4614.9,4614.8,0.6825]
[1758242709809,1.30723089,4614.9,4614.8,0.6825]
[1758242710105,1.83439521,4614.9,4614.8,0.6825]
[1758242710311,1.16766432,4614.9,4614.8,0.6825]
[1758242712711,1.36006432,4614.9,4614.8,0.6825]
[1758242715913,1.66076432,4614.9,4614.8,0.6825]
[1758242717209,1.14106432,4614.9,4614.8,0.6825]
[1758242717413,2.32042101,4614.9,4614.8,0.6825]
[1758242719008,1.80072101,4614.9,4614.8,0.6825]
[1758242719211,1.49963089,4614.9,4614.8,0.6825]
[1758242719411,1.28063089,4614.9,4614.8,0.6825]
[1758242719609,1.49963089,4614.9,4614.8,0.6825]
[1758242720917,1.30723089,4614.9,4614.8,0.6825]
[1758242721619,1.82568665,4614.9,4614.8,0.6825]
[1758242722021,2.0510825,4614.9,4614.8,0.6825]
[1758242722429,2.5441825,4614.9,4614.8,0.2874]
[1758242723623,1.65845161,4614.9,4614.8,0.2874]
[1758242723928,1.65845161,4614.9,4614.8,0.4856]
[1758242724124,0.74385161,4614.9,4614.8,0.6825]
[1758242724330,0.96285161,4614.9,4614.8,0.6825]
[1758242724629,1.35775161,4614.9,4614.8,0.6825]
[1758242725031,4.56555161,4614.9,4614.6,0.2874]
[1758242725324,0.6956,4614.6,4614.5,0.6037]
[1758242725525,2.2434825,4614.6,4614.5,0.8006]
[1758242726028,2.5441825,4614.6,4614.5,0.8006]
[1758242726422,1.35775161,4614.6,4614.5,0.8006]
[1758242726620,1.13875161,4614.6,4614.5,1.68633089]
[1758242726824,2.02572674,4614.6,4614.1,1.4073]
[1758242727032,2.46706178,4614.2,4614.1,1.4073]
[1758242727331,3.43015065,4614.2,4614.1,1.4073]
[1758242727531,44.44687065,4614.2,4614.1,1.4073]
[1758242727723,0.3007,4614.1,4613.3,3.2078]
[1758242727929,0.6956,4612.9,4612.8,0.2874]
[1758242728231,2.54441976,4612.9,4612.8,0.2874]
[1758242728623,2.54441976,4612.9,4612.6,3.2078]
[1758242728833,1.60523089,4612.7,4612.6,3.5]
[1758242729030,2.34931976,4612.7,4612.6,3.706]
[1758242729332,1.46358887,4612.7,4612.6,3.706]
[1758242729533,2.34931976,4612.7,4612.6,3.706]
[1758242729933,2.34861757,4612.7,4612.6,3.706]
[1758242730935,1.16188668,4612.7,4612.6,4.79003089]
[1758242731238,0.96238668,4612.7,4612.6,4.79003089]
[1758242731633,0.44369366,4612.7,4612.6,4.79003089]
[1758242731833,0.219,4612.7,4612.6,4.79003089]
[1758242732440,0.209,4613.1,4613.0,0.8166]
[1758242732634,0.428,4613.1,4613.0,1.70233089]
[1758242733236,1.52323089,4613.1,4613.0,0.8166]
[1758242733433,0.4185,4612.7,4612.6,3.4138]
[1758242733737,1.82423089,4612.7,4612.6,3.4138]
[1758242734134,1.82423089,4612.7,4612.4,0.0216]
[1758242734442,1.70543089,4612.5,4612.4,0.0216]
[1758242734840,0.4185,4612.2,4612.1,0.2922]
[1758242735043,1.82423089,4612.2,4612.1,0.2922]
[1758242735638,1.52323089,4612.2,4611.8,3.2078]
[1758242735839,1.60523089,4612.0,4611.8,3.2078]
[1758242736041,1.60523089,4612.0,4611.9,2.4607]
[1758242736538,1.60523089,4612.0,4611.9,2.6667]
[1758242737246,1.60523089,4612.0,4611.9,0.4982]
[1758242739850,0.7195,4611.9,4611.7,0.0216]
[1758242740044,2.34351528,4611.8,4611.7,0.0216]
[1758242740349,6.78477922,4611.8,4611.7,0.0216]
[1758242740753,6.56793922,4611.8,4611.7,0.0216]
[1758242741154,6.78477922,4611.8,4611.7,0.0216]
[1758242741648,6.78423827,4611.8,4611.7,0.0216]
[1758242741847,6.78423827,4611.8,4610.8,0.2922]
[1758242742049,1.60523089,4610.9,4610.8,0.2922]
[1758242742240,1.82423089,4610.9,4610.8,0.2922]
[1758242742754,0.9385,4610.9,4610.8,0.2922]
[1758242742942,0.9385,4610.9,4610.8,0.4982]
[1758242743653,44.3088,4611.3,4610.8,0.6965]
[1758242743849,44.3088,4611.3,4610.7,0.88573089]
[1758242743850,3.2078,4611.3,4611.2,1.58223089]
[1758242744043,0.209,4612.2,4612.1,0.6965]
[1758242744246,1.52323089,4612.2,4612.1,0.6965]
[1758242744455,42.62423089,4612.2,4612.1,0.4982]
[1758242744643,42.40523089,4612.2,4612.1,0.4982]
[1758242744844,42.62423089,4612.2,4612.1,0.4982]
[1758242745050,42.62423089,4612.2,4611.6,0.2922]
[1758242745251,1.30423089,4611.7,4611.6,0.4982]
[1758242745559,1.82423089,4611.7,4611.6,0.4982]
[1758242745854,1.52323089,4611.7,4611.6,0.6965]
[1758242746658,1.30423089,4611.7,4611.6,0.6965]
[1758242746955,1.52323089,4611.7,4611.6,0.6965]
[1758242748058,1.82423089,4611.7,4611.6,0.4982]
[1758242748354,0.4185,4611.4,4611.3,3.6121]
[1758242748555,0.6375,4611.4,4611.3,3.6121]
[1758242748756,0.6375,4611.4,4611.3,3.9043]
[1758242748953,0.6375,4611.4,4611.3,0.6965]
[1758242749256,0.9385,4611.4,4611.3,0.2922]
[1758242749555,0.9385,4611.4,4611.3,0.4982]
[1758242749758,0.9385,4611.4,4611.3,0.2922]
[1758242752058,0.9385,4611.4,4611.3,0.4982]
[1758242752257,0.9385,4611.4,4611.3,0.2922]
[1758242753254,0.9385,4611.4,4611.1,0.3138]
[1758242753454,1.30423089,4611.2,4611.1,0.7181]
[1758242753653,1.52323089,4611.2,4611.1,0.7181]
[1758242754155,0.428,4611.2,4611.1,0.7181]
[1758242755366,0.428,4611.2,4611.1,0.6965]
[1758242755566,0.428,4611.2,4611.1,3.9043]
[1758242755751,0.428,4611.2,4611.1,4.79003089]
[1758242756259,0.301,4611.8,4611.1,4.79003089]
[1758242756260,0.2027,4611.8,4611.7,0.4086]
[1758242756460,2.3296554,4611.8,4611.7,0.6987]
[1758242756661,2.55904528,4611.8,4611.7,0.6987]
[1758242756860,2.55904528,4611.8,4611.7,0.4875]
[1758242757056,2.55904528,4611.8,4611.7,0.2901]
[1758242757259,0.4081,4611.3,4611.2,0.4086]
[1758242757560,2.26244528,4611.3,4611.2,0.6987]
[1758242759461,0.96861439,4611.3,4611.2,0.6987]
[1758242760064,0.74961439,4611.3,4611.2,0.6987]
[1758242760263,0.96861439,4611.3,4611.2,0.6987]
[1758242760768,0.97166505,4611.3,4611.2,0.6987]
[1758242761861,0.75266505,4611.3,4611.2,0.6987]
[1758242762065,0.97166505,4611.3,4611.2,0.6987]
[1758242762462,1.18066505,4611.3,4611.2,0.6987]
[1758242762863,2.55629594,4611.3,4611.2,0.4875]
[1758242763062,2.55629594,4611.3,4611.0,0.1417]
[1758242763063,0.6989,4611.1,4611.0,0.0216]
[1758242763260,2.33729594,4611.1,4611.0,0.0216]
[1758242763460,2.04229594,4611.1,4610.5,3.17433089]
[1758242763663,1.09473089,4610.6,4610.5,2.6991]
[1758242763865,1.84739594,4610.6,4610.5,2.6991]
[1758242764061,0.96166505,4610.6,4610.5,3.0146]
[1758242766768,2.33729594,4610.6,4610.5,2.8149]
[1758242767365,2.33729594,4610.6,4610.5,2.484]
[1758242767964,2.33729594,4610.6,4610.5,2.6948]
[1758242768271,2.33729594,4610.6,4610.5,2.8117]
[1758242768572,0.75266505,4610.6,4610.5,3.89713089]
[1758242768869,0.97166505,4610.6,4610.5,3.89713089]
[1758242769073,1.18066505,4610.6,4610.5,3.89713089]
[1758242769469,2.06639594,4610.6,4610.5,3.89713089]
[1758242769969,1.18066505,4610.6,4610.5,3.0114]
[1758242771068,1.37556505,4610.6,4610.5,3.0114]
[1758242771270,1.67056505,4610.6,4610.5,3.0114]
[1758242771875,1.37556505,4610.6,4610.5,3.0114]
[1758242772776,1.67056505,4610.6,4610.5,3.0114]
[1758242773966,1.67056505,4610.6,4610.5,2.1685]
[1758242774674,4.87836505,4610.6,4610.5,2.1685]
[1758242775875,0.6989,4610.5,4610.4,0.3155]
[1758242776078,2.48972543,4610.5,4610.4,0.3155]
[1758242776476,0.6989,4610.4,4610.3,0.3371]
[1758242776677,1.45156505,4610.4,4610.3,0.3371]
[1758242776876,1.45156505,4610.4,4610.3,0.3155]
[1758242777678,1.67056505,4610.4,4610.3,0.3155]
[1758242779984,42.47056505,4610.4,4610.3,0.3155]
[1758242780584,42.47056505,4610.4,4610.3,0.5263]
[1758242782188,42.47056505,4610.4,4610.3,0.3155]
[1758242782987,42.47056505,4610.4,4610.1,0.0216]
[1758242783187,1.73706038,4610.2,4610.1,0.0216]
[1758242783479,2.70872543,4610.2,4610.1,0.5263]
[1758242785287,2.70872543,4610.2,4609.6,0.3155]
[1758242785488,0.209,4609.7,4609.6,0.726]
[1758242785785,0.428,4609.7,4609.6,0.726]
[1758242786183,0.428,4609.7,4609.6,0.3155]
[1758242786184,0.6229,4609.7,4609.6,0.3155]
[1758242786381,0.6229,4609.7,4609.6,0.5263]
[1758242786682,1.6717809,4609.7,4609.6,0.5263]
[1758242787884,1.1577809,4609.7,4609.6,0.726]
[1758242788090,0.9728809,4609.7,4609.6,0.726]
[1758242788986,0.7538809,4609.7,4609.6,0.726]
[1758242789186,0.9728809,4609.7,4609.6,0.726]
[1758242790384,0.3016,4611.2,4611.0,0.1198]
[1758242790589,1.64886038,4611.1,4611.0,0.8166]
[1758242790789,42.75046038,4611.1,4611.0,0.8166]
[1758242792592,43.48702076,4611.1,4610.5,0.4124]
[1758242792794,1.73146038,4610.6,4610.5,0.2926]
[1758242792982,1.73146038,4610.6,4610.3,3.5004]
[1758242792983,0.3917,4610.4,4610.3,3.5004]
[1758242793182,0.9123,4610.4,4610.3,3.5004]
[1758242793397,0.9123,4610.4,4610.3,3.7031]
[1758242793590,0.6107,4610.4,4610.3,3.9046]
[1758242794995,0.3016,4611.0,4610.3,3.612]
[1758242795294,1.03816038,4610.5,4610.4,0.6968]
[1758242795483,1.25716038,4610.5,4610.4,0.6968]
[1758242796388,1.45266038,4610.5,4610.4,0.6968]
[1758242797896,40.8,4611.1,4610.3,3.2078]
[1758242797897,41.1917,4611.1,4611.0,0.6151]
[1758242798097,1.64886038,4611.1,4611.0,0.8166]
[1758242798596,1.42986038,4611.1,4611.0,0.8166]
[1758242798793,1.95046038,4611.1,4611.0,0.4953]
[1758242798995,1.95046038,4611.1,4611.0,0.2926]
[1758242799496,0.3917,4611.1,4611.0,0.8166]
[1758242799695,1.03816038,4611.4,4611.0,0.524]
[1758242800295,0.4145,4611.3,4611.2,0.6968]
[1758242800898,0.6107,4611.3,4611.2,0.6968]
[1758242801091,0.6107,4611.3,4611.2,0.4953]
[1758242801296,4.1201,4611.3,4611.2,0.2926]
[1758242801895,4.1201,4611.3,4610.6,0.2926]
[1758242802092,1.03816038,4610.8,4610.7,0.4042]
[1758242802293,1.6798205,4610.8,4610.7,0.6968]
[1758242803402,1.8760205,4610.8,4610.7,0.6968]
[1758242803596,2.1776205,4610.8,4610.7,0.6968]
[1758242803796,2.40000177,4610.8,4610.7,0.6968]
[1758242804898,2.70160177,4610.8,4610.7,0.4953]
[1758242805198,2.70160177,4610.8,4610.7,0.2926]
[1758242805600,2.47444165,4610.8,4610.7,0.2926]
[1758242806094,2.47444165,4610.8,4610.7,0.4953]
[1758242806290,2.47444165,4610.8,4610.7,0.2926]
[1758242806602,2.47444165,4610.8,4610.7,0.4953]
[1758242807399,0.6933,4610.7,4610.6,0.4953]
[1758242808102,0.3917,4610.5,4610.4,0.2926]
[1758242808297,0.3917,4610.2,4610.1,2.3712]
[1758242808495,1.95046038,4610.2,4610.1,2.6638]
[1758242808890,1.95046038,4610.2,4610.1,0.4953]
[1758242809292,1.73146038,4610.2,4610.1,0.4953]
[1758242809503,1.64886038,4610.2,4610.1,0.6968]
[1758242809702,1.95046038,4610.2,4610.1,0.6968]
[1758242811703,2.47428912,4610.2,4610.1,0.6968]
[1758242812299,2.70136186,4610.2,4610.1,0.4953]
[1758242813395,2.70136186,4610.2,4610.1,0.6968]
[1758242813396,0.75090148,4610.2,4610.1,0.6968]
[1758242813596,0.96990148,4610.2,4610.1,0.6968]
[1758242813793,0.74282874,4610.2,4610.1,0.6968]
[1758242814204,0.96992144,4610.2,4610.1,0.6968]
[1758242815306,0.74282874,4610.2,4610.1,0.6968]
[1758242815605,0.96738257,4610.2,4610.1,0.6968]
[1758242815806,0.74838257,4610.2,4610.1,0.6968]
[1758242818006,0.74847055,4610.2,4610.1,0.6968]
[1758242818605,0.94267055,4610.2,4610.1,0.6968]
[1758242818809,2.48363093,4610.2,4610.1,0.6968]
[1758242819106,0.74847055,4610.2,4610.1,0.6968]
[1758242820804,0.219,4610.7,4610.1,4.6968]
[1758242820999,1.03816038,4611.1,4610.6,4.96036038]
[1758242821206,0.1942,4610.7,4610.6,3.9222]
[1758242821611,0.697,4610.7,4610.6,0.7144]
[1758242823904,0.697,4610.7,4610.6,0.2998]
[1758242824104,0.697,4610.2,4610.1,5.6761]
[1758242824299,1.73516038,4610.2,4610.1,5.6761]
[1758242824601,1.73516038,4610.2,4610.1,3.7194]
[1758242824802,1.32926038,4610.5,4610.1,3.9222]
[1758242825103,0.1942,4611.0,4610.9,0.7144]
[1758242825299,0.4132,4611.0,4610.9,0.7144]
[1758242825504,1.45136038,4611.0,4610.9,0.7144]
[1758242825706,1.66306038,4611.0,4610.9,0.7144]
[1758242826410,1.95416038,4611.0,4610.9,0.7144]
[1758242826805,1.95416038,4611.0,4610.9,0.5116]
[1758242827107,0.4059,4610.8,4610.7,3.2078]
[1758242827311,0.4059,4610.4,4610.3,0.5116]
[1758242827505,1.73516038,4610.4,4610.3,0.5116]
[1758242828508,0.697,4610.3,4610.2,3.5076]
[1758242828713,0.697,4610.3,4610.2,3.7194]
[1758242829715,0.4059,4610.3,4610.2,3.9222]
[1758242830014,1.29336701,4610.3,4610.2,3.9222]
[1758242830314,1.58446701,4610.3,4610.2,3.9222]
[1758242831207,1.58446701,4610.3,4610.2,3.2078]
[1758242831408,0.2911,4610.2,4610.0,2.1685]
[1758242831616,1.58446701,4610.1,4610.0,2.6801]
[1758242832610,1.51236701,4610.1,4610.0,0.8358]
[1758242833009,2.25512821,4610.1,4610.0,0.8358]
[1758242833205,2.54622821,4610.1,4610.0,0.8358]
[1758242833408,2.54622821,4610.1,4610.0,0.5116]
[1758242833613,2.54622821,4610.1,4610.0,0.633]
[1758242834413,0.7427612,4610.1,4610.0,0.8358]
[1758242834915,0.7427612,4610.1,4610.0,1.72326701]
[1758242835621,0.52088412,4610.1,4610.0,1.72326701]
[1758242835916,0.93690569,4610.1,4610.0,0.8358]
[1758242837613,2.0360727,4610.1,4610.0,0.8358]
[1758242838720,2.0360727,4610.1,4610.0,0.5116]
[1758242838721,2.3271727,4610.1,4610.0,0.5116]
[1758242839124,2.3271727,4610.1,4609.9,0.0216]
[1758242839418,1.43970569,4610.0,4609.9,0.3214]
[1758242839822,1.14860569,4610.0,4609.9,0.7144]
[1758242840019,1.36760569,4610.0,4609.9,0.7144]
[1758242840322,0.93690569,4610.0,4609.9,0.7144]
[1758242840522,1.15590569,4610.0,4609.9,0.7144]
[1758242841619,1.36760569,4610.0,4609.9,0.7144]
[1758242842022,1.65870569,4610.0,4609.9,0.7144]
[1758242843127,1.36760569,4610.0,4609.9,0.7144]
[1758242843722,1.65870569,4610.0,4609.9,0.7144]
[1758242843928,1.36760569,4610.0,4609.9,0.7144]
[1758242846329,0.74270569,4610.0,4609.9,4.80966701]
[1758242846528,0.52088412,4610.0,4609.9,4.80966701]
[1758242847036,1.08166701,4610.6,4610.5,0.3242]
[1758242847235,2.04298846,4610.6,4610.5,0.536]
[1758242847623,2.04298846,4610.6,4610.5,0.8358]
[1758242848425,2.04298846,4610.6,4610.0,0.1214]
[1758242848426,0.2085,4610.1,4610.0,0.1214]
[1758242848737,1.81134923,4610.1,4610.0,0.8181]
[1758242848933,2.03034923,4610.1,4610.0,0.8181]
[1758242849333,2.55279644,4610.1,4610.0,0.8181]
[1758242849539,2.55279644,4610.1,4610.0,0.4899]
[1758242849837,2.33379644,4610.1,4610.0,0.4899]
[1758242850034,3.44026345,4610.1,4609.8,0.2922]
[1758242850338,1.59146701,4609.9,4609.8,0.2922]
[1758242850540,2.33381441,4609.9,4609.8,0.2922]
[1758242851539,1.4463474,4609.9,4609.8,0.4899]
[1758242852429,1.4463474,4609.9,4609.8,0.2922]
[1758242852633,1.4463474,4609.9,4609.7,0.0216]
[1758242852936,2.55281441,4609.8,4609.7,0.0216]
[1758242853332,2.25211441,4609.8,4609.4,3.2078]
[1758242853536,0.704,4609.6,4609.5,0.2922]
[1758242853735,2.11204923,4609.6,4609.5,0.4899]
[1758242853939,2.11204923,4609.6,4609.5,0.6131]
[1758242854442,1.81134923,4609.6,4609.5,0.8199]
[1758242857036,1.83554923,4609.6,4609.5,0.8199]
[1758242858041,0.52058222,4609.6,4609.5,1.70736701]
[1758242858245,0.219,4609.8,4609.5,1.70736701]
[1758242858445,0.52057562,4609.7,4609.6,0.6967]
[1758242859639,0.52057562,4609.7,4609.6,1.58416701]
[1758242860345,0.72907562,4609.7,4609.6,0.6967]
[1758242860742,0.92387562,4609.7,4609.6,0.6967]
[1758242861446,0.72907562,4609.7,4609.6,0.6967]
[1758242861641,0.5206901,4609.7,4609.6,0.6967]
[1758242861841,0.9239901,4609.7,4609.6,0.2922]
[1758242862043,1.44666549,4609.7,4609.6,0.2922]
[1758242863242,0.4033,4609.5,4609.4,3.5]
[1758242863436,1.8134424,4609.5,4609.4,3.5]
[1758242863647,2.3341325,4609.5,4609.4,3.5]
[1758242863835,1.44666549,4609.5,4609.4,3.6977]
[1758242864041,2.3341325,4609.5,4609.4,3.9045]
[1758242864239,2.3341325,4609.5,4609.4,3.7068]
[1758242864443,2.4347325,4609.5,4609.3,0.0216]
[1758242864650,2.4347325,4609.5,4608.4,0.88746701]
[1758242864651,0.8335,4607.5,4607.4,1.94418057]
[1758242864848,0.8335,4607.0,4606.9,0.1977]
[1758242865145,2.60843402,4607.0,4606.9,0.1977]
[1758242865345,0.3153,4606.4,4605.8,3.2078]
[1758242865538,0.7186,4605.9,4605.8,3.6123]
[1758242865744,3.2078,4606.4,4605.8,3.6123]
[1758242865745,3.5231,4606.4,4605.8,3.6123]
[1758242866044,1.20276701,4606.2,4605.8,3.6123]
[1758242866243,0.2085,4605.9,4605.8,4.49976701]
[1758242866440,0.3153,4606.5,4605.8,4.49976701]
[1758242866644,0.1149,4608.0,4607.4,0.4045]
[1758242866645,0.2085,4607.5,4607.4,0.4045]
[1758242866849,1.82606701,4607.5,4607.4,0.6967]
[1758242867046,2.21091913,4607.5,4607.4,0.1977]
[1758242867246,1.89561913,4607.5,4607.0,0.2922]
[1758242867544,1.60606701,4607.1,4607.0,0.6967]
[1758242867748,1.82606701,4607.1,4607.0,0.6967]
[1758242869748,0.9386,4607.1,4607.0,0.6967]
[1758242874443,0.3153,4607.4,4607.1,0.2922]
[1758242874647,0.5238,4607.4,4607.3,0.6967]
[1758242874952,0.7438,4607.4,4607.3,0.6967]
[1758242877645,0.4285,4607.4,4607.3,0.6967]
[1758242877844,0.3175,4607.7,4607.4,0.3106]
[1758242878047,0.3175,4607.7,4607.0,0.1232]
[1758242878048,0.6281,4607.6,4607.5,0.402]
[1758242878248,0.6281,4607.6,4607.5,0.7126]
[1758242878752,0.9403,4607.6,4607.5,0.7126]
[1758242878952,0.22,4607.6,4607.5,0.8384]
[1758242879456,0.4217,4607.6,4607.5,0.8384]
[1758242881658,0.2017,4607.6,4607.5,0.8384]
[1758242881958,0.51715418,4607.9,4607.8,0.7126]
[1758242882154,0.00325418,4607.9,4607.8,0.7126]
[1758242886061,3.2078,4608.8,4608.5,0.8384]
[1758242886359,3.2078,4608.8,4608.7,0.7126]
[1758242886560,3.48997277,4608.8,4608.7,0.7126]
[1758242887059,0.3122,4609.0,4608.7,0.7126]
[1758242887257,0.28216645,4608.9,4608.8,0.9326]
[1758242887452,0.48386645,4608.9,4608.8,0.9326]
[1758242887650,0.79606645,4608.9,4608.8,0.9326]
[1758242888052,0.28216645,4608.9,4608.8,0.9326]
[1758242888254,0.3122,4609.0,4608.8,0.4236]
[1758242888461,0.28226737,4608.9,4608.8,0.4236]
[1758242888657,0.28226737,4608.9,4608.8,0.622]
[1758242888861,0.28226737,4608.9,4608.8,0.9326]
[1758242889162,0.28226737,4608.9,4608.8,0.7126]
[1758242889356,0.28226737,4608.9,4608.8,0.9326]
[1758242890959,0.3122,4609.0,4608.8,0.622]
[1758242891163,0.3122,4609.0,4608.9,0.7126]
[1758242891164,0.5139,4609.0,4608.9,0.7126]
[1758242891356,0.79635926,4609.0,4608.9,0.7126]
[1758242892057,1.00275926,4609.0,4608.9,0.7126]
[1758242892359,1.00275926,4609.0,4608.9,0.9326]
[1758242892854,1.12215926,4609.0,4608.9,0.7126]
[1758242893160,1.12215926,4609.0,4608.9,0.4236]
[1758242893558,0.48415926,4609.0,4608.9,0.9326]
[1758242893861,0.28245926,4609.0,4608.9,0.9326]
[1758242894357,0.79635926,4609.0,4608.9,0.9326]
[1758242895358,0.79635926,4609.0,4608.9,0.7126]
[1758242895764,0.79635926,4609.0,4608.9,0.9326]
[1758242896162,0.79635926,4609.0,4608.9,0.7126]
[1758242896362,0.79635926,4609.0,4608.9,0.9326]
[1758242896569,1.00275926,4609.0,4608.9,0.7126]
[1758242896763,1.00275926,4609.0,4608.9,0.9326]
[1758242897762,1.12215926,4609.0,4608.9,0.9326]
[1758242897969,1.12215926,4609.0,4608.5,2.1715]
[1758242897970,0.7203,4608.6,4608.5,2.1715]
[1758242898168,0.7203,4608.6,4608.5,2.5951]
[1758242898364,0.7203,4608.6,4608.5,3.1041]
[1758242898568,1.0029667,4608.6,4608.5,3.1041]
[1758242898770,1.0029667,4608.6,4608.5,2.1715]
[1758242898969,1.0029667,4608.6,4608.5,2.5951]
[1758242899568,1.0029667,4608.6,4608.5,2.9057]
[1758242900069,0.7203,4608.6,4608.5,3.1041]
[1758242900471,0.7203,4608.6,4608.5,2.8841]
[1758242900672,1.00299815,4608.6,4608.5,2.8841]
[1758242900871,1.00299815,4608.6,4608.5,3.1041]